Cogmind - Beta 9.3 *** ADVENTURER MODE // 2020.01.02 @ 14:41:49 // Winter2019/RPGLIKE Player: DanielJ Result: Destroyed by as-86748 with Assembled Blade Performance ------------- Evolutions (0) 0 Regions Visited (2) 400 Robots Destroyed (23) 115 Value Destroyed (282) 282 Prototype IDs (5) 100 Alien Tech Used (0) 0 Bonus (0) 0 TOTAL SCORE: 897 Bonus ------- None Cogmind --------- Core Integrity 0/900 Matter 288/300 Energy 250/250 System Corruption 0% Temperature Cool (13) Movement Walking (120) Location -10/Mines Parts ------- > --- POWER (2) -------- Ion Engine > --- PROPULSION (2) --- Aluminum Leg Aluminum Leg > --- UTILITY (2) ------ (None) > --- WEAPON (3) ------- Improved Light Cannon Improved Light Cannon Improved Light Cannon > --- INVENTORY (2) ---- Mining Laser Peak State ------------ > --- POWER ------------ Ion Engine Light Ion Engine > --- PROPULSION ------- Aluminum Leg Aluminum Leg > --- UTILITY ---------- (None) > --- WEAPON ----------- Improved Light Cannon Improved Light Cannon Improved Light Cannon > --- INVENTORY -------- Mining Laser [Rating: 10] Favorites ----------- Power Ion Engine Engine Ion Engine Propulsion Aluminum Leg Leg Aluminum Leg Utility None Weapon Improved Light Cannon Energy Gun Medium Laser Ballistic Gun Light Assault Rifle Ballistic Cannon Improved Light Cannon Special Weapon Mining Laser Build | -11 -10 -10 ------- Run | Scr Mat Min Slots Evolved 5 | 4 . 1 Power 1 | 1 . . Propulsion 1 | 1 . . Utility 1 | 1 . . Weapon 2 | 1 . 1 Parts Attached 13 | 6 4 3 Power 2 | 2 . . Engine 2 | 2 . . Core . | . . . Reactor . | . . . Propulsion 2 | 2 . . Treads . | . . . Leg 2 | 2 . . Wheel . | . . . Hover . | . . . Flight . | . . . Utility . | . . . Device . | . . . Storage . | . . . Processor . | . . . Hackware . | . . . Protection . | . . . Artifact . | . . . Weapon 9 | 2 4 3 Energy Gun 3 | 1 2 . Energy Cannon . | . . . Ballistic Gun 1 | 1 . . Ballistic Cannon 4 | . 2 2 Launcher . | . . . Special Weapon 1 | . . 1 Impact Weapon . | . . . Slashing Weapon . | . . . Piercing Weapon . | . . . Special Melee Weapon . | . . . Unidentified Prototypes . | . . . Parts Lost 1 | . . 1 Power 1 | . . 1 Propulsion . | . . . Utility . | . . . Weapon . | . . . Highest Loss Streak 1 | . . 1 Average Slot Usage (%) 74 | . 74 69 Engine 23 | . 25 15 Leg 24 | . 25 23 Energy Gun 7 | . 8 . Ballistic Gun 2 | . 2 . Ballistic Cannon 15 | . 13 27 Naked Turns . | . . . Heaviest Build 20 | 11 16 20 Greatest Support 20 | 20 20 20 Greatest Overweight (x) 1 | 1 . . Average Overweight (x) . | . . . Largest Inventory Capacity 2 | 2 2 2 Average Capacity 2 | 2 2 2 Most Carried 2 | . 1 2 Average Carried . | . . 1 Final Capacity 2 | 2 2 2 Final Carried 1 | . 1 1 Class Distribution -------------------- 92% | Mutant 7% | Gunner Dominant Class ---------------- Mutant | -10/Materials Gunner | -10/Mines Resources | -11 -10 -10 ----------- Run | Scr Mat Min Matter Collected 616 | 162 294 160 Remotely . | . . . Salvage Created 439 | . 427 12 Parts 23 | . 23 . Haulers Intercepted . | . . . Recyclers Shooed . | . . . Parts Field Recycled . | . . . Retrieved Matter . | . . . Parts Self-Destructed . | . . . Prevented . | . . . Kills | -11 -10 -10 ------- Run | Scr Mat Min Combat Hostiles Destroyed 19 | . 13 6 Guns 7 | . 7 . Cannons 12 | . 6 6 Classes Destroyed 6 | . 5 1 Builder 1 | . 1 . Recycler 1 | . 1 . Watcher 2 | . 2 . Swarmer 9 | . 9 . Grunt 4 | . 4 . Assembled 6 | . . 6 Best Kill Streak 4 | . 4 3 Combat Bots Only 3 | . 3 3 Max Kills in Single Turn 1 | . 1 1 Gunslinging . | . . . Exploded . | . . . Melee . | . . . Uniques/NPCs Destroyed . | . . . Combat | -11 -10 -10 -------- Run | Scr Mat Min Damage Taken 1369 | . 584 785 Core 1082 | . 460 622 Absorbed by Shields . | . . . Redirected to Core 925 | . 366 559 Core Remaining (%) 100 | 100 . . Volleys Fired 65 | . 50 15 Largest 3 | . 2 3 Hottest 139 | . 100 139 Shots Fired 129 | . 89 40 Gun 51 | . 51 . Cannon 73 | . 38 35 Launcher . | . . . Special 5 | . . 5 Kinetic 84 | . 49 35 Thermal 45 | . 40 5 Explosive . | . . . Electromagnetic . | . . . Robot Hit Streak 13 | . 13 7 Robot Miss Streak 3 | . 2 3 Penetration Max . | . . . Secondary Targets 3 | . 3 . Max Gunslinging Chain 1 | . 1 . Shots Hit Robots 82 | . 65 17 Core Hits 35 | . 26 9 Critical Hits 1 | . 1 . Critical Kills 1 | . 1 . Critical Parts Destroyed . | . . . Melee Attacks . | . . . Impact . | . . . Slashing . | . . . Piercing . | . . . Sneak Attacks . | . . . Combat Hostiles . | . . . Follow-up Attacks . | . . . Damage Inflicted 1343 | . 968 375 Guns 470 | . 470 . Cannons 849 | . 498 351 Explosions . | . . . Melee . | . . . Ramming . | . . . Kinetic 903 | . 552 351 Thermal 440 | . 416 24 Explosive . | . . . Electromagnetic . | . . . Impact . | . . . Slashing . | . . . Piercing . | . . . Highest Corruption . | . . . Average Corruption . | . . . Corruption Purged . | . . . Overload Shots . | . . . Overflow Damage 69 | . 35 34 Projectiles 69 | . 35 34 Explosions . | . . . Melee . | . . . Knockbacks 13 | . 5 8 Impact . | . . . Kinetic 12 | . 5 7 Secondary 1 | . . 1 Self-Inflicted Damage . | . . . Shots . | . . . Rammed . | . . . Targets Rammed . | . . . Kicked . | . . . Crushed . | . . . Highest Temperature 403 | . 403 373 Average Temperature 128 | . 117 153 Received Heat Transfer 586 | . 246 340 Effects 6 | . 4 2 Shutdowns 3 | . 3 . Energy Bleed 2 | . . 2 Short Circuit 1 | . 1 . Siege Activations . | . . . Robots Corrupted . | . . . Combat Hostiles . | . . . Parts Fried . | . . . Impact Corruptions 1 | . . 1 Robots Melted . | . . . Combat Hostiles . | . . . Parts Melted 2 | . 2 . Heat Transferred 1271 | . 1221 50 Parts Sabotaged . | . . . Parts Stolen . | . . . Parts Stripped . | . . . Power Chain Reactions . | . . . Missiles Intercepted . | . . . Alert | -11 -10 -10 ------- Run | Scr Mat Min Peak Influence 219 | . 219 30 Average Influence 51 | . 59 5 Maximum Alert Level 1 | . 1 . Low Security (%) 94 | 100 93 100 Level 1 5 | . 6 . Level 2 . | . . . Level 3 . | . . . Level 4 . | . . . Level 5 . | . . . High Security . | . . . Max Security . | . . . Squads Dispatched 1 | . 1 . Investigation 1 | . 1 . Extermination . | . . . Reinforcement . | . . . Assault . | . . . Garrison . | . . . Intercept . | . . . Construction Impeded . | . . . Haulers Reinforced . | . . . Stealth | -11 -10 -10 --------- Run | Scr Mat Min Distress Signals 1 | . 1 . Communications Jammed . | . . . Distress Signals . | . . . Times Spotted 43 | . 17 26 Peak Tracking Total 17 | . 4 17 Tactical Retreats 3 | . . 3 Traps | -11 -10 -10 ------- Run | Scr Mat Min Traps Triggered 1 | . 1 . Indirectly . | . . . Trap Hack Attempts . | . . . Triggered . | . . . Disarmed . | . . . Reprogrammed . | . . . Reused . | . . . Traps Extracted . | . . . Installed . | . . . Triggered . | . . . Machines | -11 -10 -10 ---------- Run | Scr Mat Min Machines Disabled . | . . . Max in Single Turn . | . . . Machines Sabotaged . | . . . Garrisons Compromised . | . . . Overloaded Fab Kills . | . . . Fab Network Shutdowns . | . . . Hacking | -11 -10 -10 --------- Run | Scr Mat Min Machines Accessed 9 | . 9 . Terminals 7 | . 7 . Fabricators . | . . . Repair Stations . | . . . Recycling Units 2 | . 2 . Scanalyzers . | . . . Garrison Access . | . . . Total Hacks 15 | . 15 . Successful 12 | . 12 . Failed 3 | . 3 . Catastrophic 1 | . 1 . Database Lockouts . | . . . Manual 1 | . 1 . Terminals 13 | . 13 . Fabricators . | . . . Repair Stations . | . . . Recycling Units 2 | . 2 . Scanalyzers . | . . . Garrison Access . | . . . Terminal Hacks 10 | . 10 . Prototype ID Bank 3 | . 3 . Emergency Access Points 1 | . 1 . Alert Level 1 | . 1 . Locate Traps 2 | . 2 . Reinforcement Status 1 | . 1 . Registered Components 1 | . 1 . Registered Prototypes 1 | . 1 . Fabricator Hacks . | . . . Repair Station Hacks . | . . . Recycling Unit Hacks 2 | . 2 . Report Inventory 2 | . 2 . Scanalyzer . | . . . Garrison Access Hacks . | . . . Unauthorized Hacks . | . . . Terminals . | . . . Fabricators . | . . . Repair Stations . | . . . Recycling Units . | . . . Scanalyzers . | . . . Garrison Access . | . . . Data Cores Recovered . | . . . Used . | . . . Hacking Detections 4 | . 4 . Full Trace Events . | . . . Feedback Events . | . . . Feedback Blocked . | . . . Robot Schematics Acquired . | . . . Robots Built . | . . . Matter . | . . . Time . | . . . Total Robot Build Rating . | . . . Part Schematics Acquired . | . . . Parts Built . | . . . Matter . | . . . Time . | . . . Total Part Build Rating . | . . . Parts Repaired . | . . . Time . | . . . Parts Recycled . | . . . Recycled Matter . | . . . Retrieved Matter . | . . . Retrieved Components . | . . . Parts Scanalyzed . | . . . Part Schematics Acquired . | . . . Parts Damaged . | . . . Bothacking | -11 -10 -10 ------------ Run | Scr Mat Min Used RIF Installer . | . . . Robots Hacked . | . . . Non-combat . | . . . Combat . | . . . Robot Hacks Applied . | . . . Relay Couplers Released . | . . . Robots Rewired . | . . . Allies Hacked . | . . . Hacks Repelled . | . . . Allies | -11 -10 -10 -------- Run | Scr Mat Min Total Allies 1 | . . 1 Largest Group 1 | . . 1 Highest-Rated Group 31 | . . 31 Highest-Rated Ally 31 | . . 31 Total Orders . | . . . Ally Attacks 4 | . . 4 Total Damage 64 | . . 64 Kills 2 | . . 2 Allies Corrupted . | . . . Allies Melted . | . . . Intel | -11 -10 -10 ------- Run | Scr Mat Min Robot Analysis Total . | . . . Derelict Logs Recovered . | . . . Drone Launches . | . . . Drone Recoveries . | . . . Exploration | -11 -10 -10 ------------- Run | Scr Mat Min Turns Passed 1430 | 46 1233 151 Spaces Moved 992 | 40 880 72 Core 16 | 16 . . Treads . | . . . Legs 976 | 24 880 72 Wheels . | . . . Hover . | . . . Flight . | . . . Fastest Speed 50 | 50 120 120 Average Speed 118 | 93 120 120 Slowest Speed 120 | 120 120 120 Overloaded Moves . | . . . Propulsion Burnouts . | . . . Robots Hopped . | . . . Cave-ins Triggered 1 | . . 1 Exploration Rate (%) 38 | 3 98 13 Regions Visited 2 Branch Regions 1 Pre-discovered Areas . | . . . Known Exits Taken . | . . . Unknown Exits Taken 2 | 1 1 . Scrap Searched . | . . . Spaces Dug 2 | . . 2 Terrain Destroyed 3 | . . 3 Melee . | . . . Projectile 3 | . . 3 AOE . | . . . Actions | -11 -10 -10 --------- Run | Scr Mat Min Total 1110 | 45 970 95 Wait 25 | . 22 3 Move 990 | 39 879 72 Hop . | . . . Pick Up 2 | . 1 1 Fast Attach 10 | 6 4 . Attach 1 | . . 1 Detach . | . . . Swap 2 | . . 2 Drop 4 | . 4 . Fire 65 | . 50 15 Melee . | . . . Ram . | . . . Kick . | . . . Crush . | . . . Escape Stasis . | . . . Rewire . | . . . Trap . | . . . Miscellaneous 11 | . 10 1 Route ------- -11/Scrapyard -10/Materials (discovered 4 exits: [*Mat x3] / [*Min]) -10/Mines History --------- Turn | Location | Event 1 | -11/Scrapyard | Upgraded with Power slot (x1) 1 | -11/Scrapyard | Upgraded with Propulsion slot (x1) 1 | -11/Scrapyard | Upgraded with Utility slot (x1) 1 | -11/Scrapyard | Upgraded with Weapon slot (x1) 3 | -11/Scrapyard | Discovered new exit (range 15) 47 | -11/Scrapyard | Entered Materials 192 | -10/Materials | Discovered new exit (range 9) 324 | -10/Materials | Build established: Mutant 356 | -10/Materials | Discovered new exit (range 15) 424 | -10/Materials | Discovered new exit (range 16) 713 | -10/Materials | Reached level 2 859 | -10/Materials | Discovered new exit (range 15) 1280 | -10/Materials | Entered Mines 1281 | -10/Mines | Assembled infested the area 1283 | -10/Mines | Received a Mining Laser from a helpful Derelict 1327 | -10/Mines | Core integrity fell below 50% 1332 | -10/Mines | Upgraded with Weapon slot (x1) 1340 | -10/Mines | Crushed by falling debris 1340 | -10/Mines | Core integrity fell below 20% 1431 | -10/Mines | Destroyed by as-86748 with Assembled Blade Last Messages --------------- 01340_ The unstable cave ceiling collapses. 01340_ Crushed by falling debris. 01353_ as-07900 knocked back. 01356_ Destroyed Asb. F-torch. 01356_ as-07900 knocked back. 01356_ as-07900 destroyed. 01389_ as-75252 destroyed. 01400_ as-49983 destroyed. 01405_ Destroyed Asb. Hover Unit. 01405_ as-58737 knocked back. 01408_ as-58737 destroyed. 01412_ Used Protomatter to restore core integrity (+-12, depleted) 01418_ Acquired 50 matter. 01419_ Acquired 104 matter. 01421_ Acquired 6 matter. 01424_ R-06 Scavenger collects Com. Wheel. 01427_ as-86748 sneak attacks. 01428_ as-85564 sneak attacks. 01428_ R-06 Scavenger system corrupted by crushing effect. 01428_ R-06 Scavenger destroyed. Map ----- +----------------------------------------------------+ | | | | | | | | | | | | | | | | | | | | | | | | | | | | | | | | | ????????????????????????????????????????????????? | | ????????????????????????????????????????????????? | | ????????????????????????????????????????????????? | | ????????????????????????????????????????????????? | | ????????????????#####???????????????????????????? | | ??????????????### ##??????????????????????????? | | ??????????##### ##?????????????????????????? | | ?????????## #####?????????????????????? | | ??????#### #?????????????????????? | | ?????## ###@#?????????????????????? | | ?????# #?#a#?????????????????????? | | ?????# ## ### #?????????????????????? | | ?????# #### ## #???? #??????????????? | | ?????## #??## ##a###% #???????????????? | | ??????## #???# ###a #???????????????? | | ???????## ##???## ##%a%#### #??????????????? | | ????????#####?????#####%#=#?????????????????????? | | ???????????????####"#?#!###?????????????????????? | | ???????????????#" %#?#*#???????????????????????? | | ??????????????# %!##]#???????????????????????? | | ?????????????# % $!=#???????????????????????? | | ????????????# % % ###%#???????????????????????? | | ???????????# ###?#|#???????????????????????? | | ??????????# #????# #???????????????????????? | | ??????????# ?????? ????????????????????????? | | ????????? ?????? ????????????????????????? | | ???????? #?????? ????????????????????????? | | ???????#########???????%????????????????????????? | | ???????????????????????#????????????????????????? | | ????????????????????????????????????????????????? | | ????????????????????????????????????????????????? | | ????????????????????????????????????????????????? | | ????????????????????????????????????????????????? | | ????????????????????????????????????????????????? | +----------------------------------------------------+ Best States ------------- Heat Dissipation 31 Energy Generation 15 Energy Capacity 275 Matter Stores 300 Matter Capacity 300 Sight Range 16 Terrain Scan Density 10 Resistance: KI 20 Resistance: TH 20 Resistance: EX 20 Resistance: EM 20 Resistance: I 20 Resistance: S 20 Resistance: P 20 Evasion (%) 50 Offensive Hacking 10 Item Schematics ----------------- None Robot Schematics ------------------ None Fabricated ------------ Nothing Alien Tech Used ----------------- None Achievements -------------- None Challenges ------------ None RPGLIKE | -11 -10 -10 --------- Run | Scr Mat Min Levels Raised 1 | . 1 . XP Earned 6160 | 4000 1660 500 XP Spent 4800 | 4000 . 800 Upgrades 16 | 15 . 1 Power Slot 1 | 1 . . Propulsion Slot 1 | 1 . . Utility Slot 1 | 1 . . Weapon Slot 2 | 1 . 1 Core Integrity 6 | 6 . . Heat Dissipation 1 | 1 . . Inventory Capacity 2 | 2 . . Ranged Accuracy 2 | 2 . . Protomatter Created 82 | . 86 -4 Integrity Restored 164 | . 176 -12 Core 164 | . 176 -12 Protomatter Decayed 65 | . 27 38 Game ------ Seed AbsorptionHardenedMultirail Manual? 0 Play Time 00:14:17 Cumulative 117.8 hours Start 2020.01.02 @ 14:22:24 End 2020.01.02 @ 14:41:49 Sessions 1 Manual Loads 0 Difficulty Adventurer Special Mode Winter2019/RPGLIKE Game No. 22 Rogue 0 Adventurer 22 Explorer 0 Win Type - Total 1 Types 1/0/0/0/0/0/0 Lore% 32 Gallery% 48 Achievement% 47 Wizard Run 0 Options --------- ASCII 0 Keyboard 0 Movement Mouse Keybinds 0 Fullscreen 2 Font 24/Proggy Map View 76x50 Tactical HUD 1 Map Filters NONE Filters NONE Steam 1 RUN: 7d8c1162-2784-4607-9462-05be4acaaeb6